bitfinex/quotes_SOLUSD_20260309
["timestamp","ask_amount","ask_price","bid_price","bid_amount"]
[1773063926188,11.29124885,85.48,85.44,11.29124885]
[1773063926481,11.69901758,85.478,85.44,11.29124885]
[1773063926688,11.29124885,85.47,85.433,11.70507883]
[1773063926883,11.29124885,85.47,85.44,11.29124885]
[1773063927187,11.69901758,85.478,85.45,11.29124885]
[1773063927481,11.69901758,85.478,85.44,11.29124885]
[1773063927683,13.12944024,85.46,85.42,11.29124885]
[1773063927865,13.12944024,85.47,85.43,11.29124885]
[1773063928182,13.53970907,85.459,85.42,11.29124885]
[1773063928486,1.83819139,85.458,85.39,1.91363095]
[1773063928672,1.83819139,85.458,85.41,11.29124885]
[1773063928865,1.83819139,85.449,85.41,11.29124885]
[1773063929069,11.29124885,85.44,85.41,11.29124885]
[1773063929386,1.83819139,85.449,85.395,1.91363095]
[1773063929693,11.29124885,85.45,85.41,11.29124885]
[1773063930068,40.95531189,85.459,85.4,11.29124885]
[1773063930069,11.29124885,85.44,85.4,11.29124885]
[1773063930287,11.70425683,85.439,85.401,11.70946476]
[1773063930483,40.96489892,85.439,85.401,11.70946476]
[1773063931381,42.80309031,85.439,85.401,11.70946476]
[1773063931587,11.29124885,85.43,85.396,11.71007863]
[1773063931887,46.79935523,85.472,85.396,11.71007863]
[1773063931888,11.7028871,85.449,85.401,1.91363095]
[1773063932082,11.7028871,85.449,85.41,11.29124885]
[1773063932287,11.29124885,85.46,85.42,11.29124885]
[1773063932478,11.29124885,85.44,85.411,11.7080938]
[1773063932662,1.83819139,85.449,85.411,11.7080938]
[1773063932866,11.29124885,85.44,85.406,11.70871027]
[1773063933481,13.13525114,85.46,85.42,11.29124885]
[1773063933672,11.29124885,85.45,85.42,11.29124885]
[1773063933871,11.29124885,85.45,85.411,1.94758354]
[1773063934288,11.70165461,85.458,85.421,11.70672317]
[1773063934499,11.29124885,85.45,85.421,11.70672317]
[1773063934786,11.29124885,85.45,85.412,11.70795672]
[1773063934990,11.29124885,85.43,85.402,11.70926844]
[1773063935175,1.84400229,85.439,85.402,11.70926844]
[1773063935377,1.84400229,85.439,85.38,0.2]
[1773063935378,11.29124885,85.43,85.397,1.94758354]
[1773063935586,87.76240959,85.458,85.38,0.2]
[1773063935587,1.84400229,85.409,85.38,0.2]
[1773063935764,11.29124885,85.41,85.38,0.2]
[1773063935970,13.13525114,85.41,85.38,0.2]
[1773063936381,11.70836797,85.409,85.38,0.2]
[1773063936581,11.70836797,85.409,85.381,11.71220763]
[1773063936777,11.70836797,85.409,85.38,0.2]
[1773063936990,11.70836797,85.409,85.381,11.71220763]
[1773063937503,11.70836797,85.409,85.38,0.2]
[1773063937695,1.84400229,85.399,85.38,0.2]
[1773063938000,1.84400229,85.399,85.38,1e-08]
[1773063938189,1.84400229,85.399,85.361,11.71493489]
[1773063938190,11.29124885,85.39,85.361,11.71493489]
[1773063938508,11.29124885,85.39,85.225,12.46054852]
[1773063938509,11.29124885,85.41,85.371,1.94758354]
[1773063938681,11.29124885,85.41,85.38,11.29124885]
[1773063938880,11.29124885,85.4,85.371,1.94758354]
[1773063939099,11.29124885,85.4,85.36,11.29124885]
[1773063939100,1.84400229,85.399,85.36,13.23883239]
[1773063939400,1.84400229,85.389,85.351,11.71632435]
[1773063939611,0.28432314,85.427,85.351,11.71632435]
[1773063939612,11.29124885,85.4,85.36,11.29124885]
[1773063939787,13.13525114,85.4,85.36,11.29124885]
[1773063940305,11.29124885,85.39,85.352,1.94758354]
[1773063940487,11.70973898,85.399,85.354,1.94758354]
[1773063940687,1.84400229,85.398,85.351,11.71624631]
[1773063940891,40.98408645,85.399,85.351,11.71624631]
[1773063940892,1.84400229,85.389,85.351,11.71624631]
[1773063941100,11.29124885,85.39,85.352,1.94758354]
[1773063941299,11.29124885,85.39,85.328,93.7551117]
[1773063941300,11.29124885,85.38,85.34,1.94758354]
[1773063941497,11.29124885,85.38,85.34,13.23883239]
[1773063941695,40.98408645,85.399,85.328,29.29860549]
[1773063941696,11.29124885,85.37,85.33,11.29124885]
[1773063941897,11.29124885,85.37,85.331,1.94758354]
[1773063942101,13.13525114,85.37,85.331,1.94758354]
[1773063942786,13.13525114,85.37,85.332,11.7189331]
[1773063942787,11.71385397,85.369,85.332,11.7189331]
[1773063943094,40.99464726,85.377,85.333,1.94758354]
[1773063943408,11.29124885,85.34,85.32,0.2]
[1773063943595,11.29124885,85.36,85.32,23.21182078]
[1773063943792,11.29124885,85.34,85.31,0.2]
[1773063943998,11.29124885,85.35,85.31,0.2]
[1773063944197,1.84400229,85.339,85.31,0.2]
[1773063944412,11.29124885,85.35,85.31,11.49124885]
[1773063944789,11.71604981,85.353,85.312,1.94758354]
[1773063944988,11.71604981,85.353,85.32,11.29124885]
[1773063945317,13.13525114,85.35,85.312,1.94758354]
[1773063945493,41.00617435,85.353,85.312,1.94758354]
[1773063945494,11.71604981,85.353,85.32,11.29124885]
[1773063945693,11.3030385,85.35,85.312,1.94758354]
[1773063946288,11.71604981,85.353,85.32,11.3030385]
[1773063946488,11.71604981,85.353,85.321,2.04359836]
[1773063946715,11.71604981,85.353,85.31,0.2]
[1773063946716,2.01795442,85.376,85.34,11.3030385]
[1773063947013,11.71248199,85.379,85.34,11.3030385]
[1773063947200,11.3030385,85.37,85.331,41.01674654]
[1773063947398,2.01795442,85.359,85.32,11.3030385]
[1773063947705,11.3030385,85.37,85.33,11.3030385]
[1773063947893,2.01795442,85.372,85.34,11.3030385]
[1773063948093,40.99368697,85.379,85.331,2.04359836]
[1773063948094,11.3030385,85.37,85.331,2.04359836]
[1773063948612,11.71248199,85.379,85.341,2.04359836]
[1773063948791,13.32099292,85.36,85.321,11.72044397]
[1773063948989,2.01795442,85.349,85.311,11.72181781]
[1773063949210,2.01795442,85.339,85.31,0.2]
[1773063949421,11.3030385,85.35,85.31,23.22496925]
[1773063949619,11.3030385,85.35,85.311,2.04359836]
[1773063950129,2.01795442,85.356,85.311,2.04359836]
[1773063950130,2.01795442,85.356,85.32,11.3030385]
[1773063950491,11.3030385,85.36,85.32,13.34663686]
[1773063950812,2.01795442,85.358,85.321,11.72044397]
[1773063951027,11.3030385,85.35,85.321,11.72044397]
[1773063951193,2.01795442,85.358,85.321,11.72044397]
[1773063951406,2.01795442,85.358,85.32,11.3030385]
[1773063951609,41.00329196,85.359,85.322,2.04359836]
[1773063951610,11.71522627,85.359,85.322,2.04359836]
[1773063952122,2.01795442,85.358,85.321,11.72044397]
[1773063952534,13.73180839,85.369,85.331,2.04359836]
[1773063952724,11.3030385,85.36,85.331,2.04359836]
[1773063952926,11.3030385,85.36,85.32,11.3030385]
[1773063952927,2.01795442,85.359,85.32,11.3030385]
[1773063953433,40.9984889,85.369,85.31,11.5030385]
[1773063953434,2.01795442,85.349,85.31,11.5030385]
[1773063953616,2.01795442,85.36,85.32,11.3030385]
[1773063953824,2.01795442,85.349,85.312,2.04359836]
[1773063954207,11.3030385,85.34,85.31,0.2]
[1773063954648,2.01795442,85.339,85.31,0.2]
[1773063954836,2.01795442,85.337,85.31,0.2]
[1773063955208,41.01338207,85.338,85.27,0.2]
[1773063955209,2.01795442,85.329,85.291,11.72456648]
[1773063955623,41.01338207,85.338,85.3,11.3030385]
[1773063955827,2.01795442,85.337,85.301,2.04359836]
[1773063956332,2.01795442,85.329,85.29,11.3030385]
[1773063956625,2.01795442,85.329,85.281,2.04359836]
[1773063956626,2.01795442,85.309,85.27,0.2]
[1773063956837,0.28432314,85.346,85.27,0.2]
[1773063956838,11.3030385,85.33,85.291,2.04359836]
[1773063957011,2.01795442,85.328,85.291,2.04359836]
[1773063957210,2.01795442,85.327,85.28,11.3030385]
[1773063957413,2.01795442,85.327,85.29,11.3030385]
[1773063957632,11.3030385,85.3,85.271,11.72731643]
[1773063958538,2.01795442,85.31,85.272,2.04359836]
[1773063958718,11.3030385,85.3,85.272,2.04359836]
[1773063958932,2.01795442,85.31,85.273,41.04464484]
[1773063959232,11.3030385,85.3,85.273,11.72704138]
[1773063959743,11.3030385,85.3,85.27,0.2]
[1773063959744,2.01795442,85.299,85.27,0.2]
[1773063960237,2.01795442,85.299,85.27,11.92742613]
[1773063960422,11.3030385,85.31,85.271,2.04359836]
[1773063960738,11.3030385,85.33,85.29,11.3030385]
[1773063960922,11.3030385,85.33,85.27,41.24606105]
[1773063960923,11.3030385,85.31,85.281,11.72594129]
[1773063961236,2.01795442,85.308,85.271,11.72731643]
[1773063961436,11.3030385,85.31,85.281,2.04359836]
[1773063961816,2.01795442,85.299,85.27,0.2]
[1773063962018,11.3030385,85.28,85.251,11.73006768]
[1773063962237,2.01795442,85.289,85.26,11.3030385]
[1773063962440,2.01795442,85.289,85.251,11.73006768]
[1773063962441,2.01795442,85.314,85.271,2.04359836]
[1773063962638,11.3030385,85.32,85.281,2.04359836]
[1773063962839,2.01795442,85.325,85.251,193.54611673]
[1773063962840,2.01795442,85.325,85.29,13.34663686]
[1773063963016,2.01795442,85.35,85.311,2.04359836]
[1773063963217,11.3030385,85.36,85.321,2.03004058]
[1773063963423,11.3030385,85.35,85.31,11.3030385]
[1773063963627,29.28282267,85.375,85.33,11.3030385]
[1773063963628,11.3030385,85.36,85.33,11.3030385]
[1773063963938,11.3030385,85.38,85.35,11.3030385]
[1773063964123,2.00760556,85.381,85.35,11.3030385]
[1773063964441,2.00760556,85.381,85.32,11.3030385]
[1773063964442,2.00760556,85.415,85.37,11.3030385]
[1773063964647,2.00760556,85.415,85.32,11.58736164]
[1773063964648,2.00760556,85.389,85.35,11.3030385]
[1773063964950,11.3030385,85.4,85.36,11.3030385]
[1773063965133,11.3030385,85.4,85.32,11.58736164]
[1773063965134,2.00760556,85.399,85.361,11.71495179]
[1773063965326,2.00760556,85.399,85.346,2.03004058]
[1773063965327,2.00760556,85.389,85.35,11.3030385]
[1773063965527,2.00760556,85.389,85.35,11.71636799]
[1773063965841,46.82782821,85.42,85.38,11.3030385]
[1773063965842,11.3030385,85.42,85.38,11.3030385]
[1773063966017,11.3030385,85.42,85.35,181.60506159]
[1773063966018,2.00760556,85.438,85.4,11.3030385]
[1773063966218,11.3030385,85.43,85.395,2.03004058]
[1773063966422,11.70425683,85.439,85.38,11.3030385]
[1773063966423,2.00760556,85.419,85.38,11.3030385]
[1773063966628,2.00760556,85.399,85.36,11.3030385]
[1773063966945,2.00760556,85.417,85.39,11.3030385]
[1773063967123,2.00760556,85.415,85.381,11.71220763]
[1773063967441,0.1,85.45,85.4,11.3030385]
[1773063967442,13.71186977,85.439,85.4,11.3030385]
[1773063967621,0.1,85.45,85.42,11.3030385]
[1773063967828,40.96010485,85.449,85.41,11.3030385]
[1773063968022,0.1,85.45,85.42,11.3030385]
[1773063968222,46.77145403,85.523,85.39,0.28432314]
[1773063968223,11.3030385,85.49,85.441,2.03004058]
[1773063968441,11.3030385,85.49,85.395,4.82477569]
[1773063968442,11.3030385,85.46,85.412,2.03004058]
[1773063968630,11.3030385,85.45,85.412,2.03004058]
[1773063968828,3.69383402,85.496,85.39,11.3030385]
[1773063968829,11.3030385,85.43,85.39,11.3030385]
[1773063969135,11.70699727,85.419,85.38,11.3030385]
[1773063969446,11.70699727,85.419,85.39,11.3030385]
[1773063969648,11.70562689,85.429,85.391,2.03004058]
[1773063969939,11.3030385,85.43,85.391,2.03004058]
[1773063970139,11.3030385,85.45,85.411,2.03004058]
[1773063970345,11.3030385,85.45,85.381,87.84155724]
[1773063970346,11.69868076,85.48,85.44,11.3030385]
[1773063970549,11.69868076,85.48,85.4,0.28432314]
[1773063970550,13.31064406,85.45,85.41,11.3030385]
[1773063970723,11.3030385,85.47,85.431,2.03004058]
[1773063970920,11.69868076,85.48,85.411,2.03004058]
[1773063970921,11.3030385,85.45,85.411,2.03004058]
[1773063971218,11.3030385,85.45,85.285,70.35207965]
[1773063971219,11.3030385,85.44,85.4,23.01264037]
[1773063971423,11.3030385,85.45,85.42,11.3030385]
[1773063971648,105.2851243,85.483,85.42,11.3030385]
[1773063971649,2.00760556,85.52,85.441,2.03004058]
[1773063971828,2.00760556,85.52,85.44,22.606077]
[1773063971829,11.69207744,85.528,85.491,2.03004058]
[1773063972022,2.00760556,85.529,85.49,11.3030385]
[1773063972225,11.69139536,85.533,85.45,3.80232314]
[1773063972226,2.00760556,85.509,85.47,11.3030385]
[1773063972419,2.00760556,85.509,85.45,3.518]
[1773063972420,2.00760556,85.489,85.45,14.8210385]
[1773063972625,2.00760556,85.479,85.45,3.518]
[1773063972936,11.3030385,85.48,85.45,3.518]
[1773063973132,2.00760556,85.494,85.45,3.518]
[1773063973442,2.00760556,85.479,85.45,3.518]
[1773063973645,2.00760556,85.459,85.413,13.73776415]
[1773063973827,2.00760556,85.459,85.39,46.84356744]
[1773063973828,11.3030385,85.43,85.391,2.03004058]
[1773063974033,11.3030385,85.41,85.373,2.03004058]
[1773063974232,11.3030385,85.41,85.374,11.71316794]
[1773063974547,11.3030385,85.4,85.36,11.3030385]
[1773063974735,11.3030385,85.4,85.37,11.3030385]
[1773063974931,11.3030385,85.41,85.37,11.3030385]
[1773063975242,11.3030385,85.44,85.363,2.03004058]
[1773063975243,11.3030385,85.4,85.363,2.03004058]
[1773063975434,11.3030385,85.4,85.363,13.74464911]
[1773063975631,11.3030385,85.4,85.363,2.03004058]
[1773063975834,11.3030385,85.39,85.363,2.03004058]
[1773063976048,11.3030385,85.4,85.363,2.03004058]
[1773063976232,11.3030385,85.4,85.326,46.87881993]
[1773063976233,11.3030385,85.38,85.34,11.3030385]
[1773063976433,2.00760556,85.388,85.34,11.3030385]
[1773063976434,11.3030385,85.37,85.34,11.3030385]
[1773063976637,11.3030385,85.36,85.33,11.3030385]
[1773063976844,11.3030385,85.36,85.32,2.03004058]
[1773063977050,11.3030385,85.37,85.33,11.3030385]
[1773063977243,11.3030385,85.36,85.32,13.33307908]
[1773063977539,11.3030385,85.36,85.324,2.03004058]
[1773063977740,11.3030385,85.36,85.32,11.3030385]
[1773063977741,13.31064406,85.36,85.32,11.3030385]
[1773063977932,13.31064406,85.36,85.254,46.9184625]
[1773063977933,11.3030385,85.33,85.282,2.03004058]
[1773063978136,11.3030385,85.31,85.28,11.3030385]
[1773063978550,2.00760556,85.344,85.291,2.03004058]
[1773063978749,2.00760556,85.344,85.269,87.95693627]
[1773063978750,11.3030385,85.33,85.301,2.03004058]
[1773063978958,11.3030385,85.33,85.269,41.04657026]
[1773063978959,11.3030385,85.33,85.291,2.03004058]
[1773063979145,11.3030385,85.32,85.291,2.03004058]
[1773063979346,11.3030385,85.33,85.29,11.3030385]
[1773063979536,23.02227631,85.33,85.291,2.03004058]
[1773063979736,11.3030385,85.32,85.291,2.03004058]
[1773063979941,11.3030385,85.33,85.3,11.3030385]
[1773063980443,11.3030385,85.33,85.291,2.03004058]
[1773063980859,11.3030385,85.33,85.29,11.3030385]
[1773063980860,11.3030385,85.31,85.281,11.72591516]
[1773063981354,11.72096319,85.318,85.28,13.33307908]
[1773063981735,46.86731877,85.348,85.265,41.04849585]
[1773063981736,29.29505091,85.339,85.291,2.03004058]
[1773063981948,11.3030385,85.33,85.291,2.03004058]
[1773063982258,11.3030385,85.34,85.301,2.03004058]
[1773063982433,11.3030385,85.34,85.3,13.33307908]
[1773063982634,11.3030385,85.34,85.301,2.03004058]
[1773063982840,11.7165989,85.349,85.311,2.03004058]
[1773063983048,11.3030385,85.34,85.3,11.3030385]
[1773063983251,11.71797185,85.339,85.301,11.72319199]
[1773063983651,11.3030385,85.33,85.301,11.72319199]
[1773063983842,11.71797185,85.339,85.301,11.72319199]
[1773063984157,11.71673618,85.348,85.31,13.33307908]
[1773063984380,11.3030385,85.37,85.331,2.03004058]
[1773063984659,7.19421616,85.388,85.301,87.92393992]
[1773063984660,11.3030385,85.35,85.31,11.3030385]
[1773063984838,2.00760556,85.359,85.311,2.03004058]
[1773063985041,11.3030385,85.36,85.321,2.03004058]
[1773063985356,11.3030385,85.38,85.341,2.03004058]
[1773063985559,7.19421616,85.388,85.322,11.7203066]
[1773063985560,7.19421616,85.388,85.36,11.3030385]
[1773063985761,29.27033841,85.411,85.337,0.28432314]
[1773063985762,11.3030385,85.41,85.361,2.03004058]
[1773063985947,11.3030385,85.42,85.38,11.3030385]
[1773063986150,2.00760556,85.425,85.38,11.3030385]
[1773063986339,11.3030385,85.42,85.38,11.3030385]
[1773063986547,11.3030385,85.42,85.39,11.3030385]
[1773063986767,11.3030385,85.42,85.38,11.3030385]
[1773063987066,2.00760556,85.419,85.38,11.3030385]
[1773063987442,11.70713432,85.418,85.381,11.71220763]
[1773063987669,11.3030385,85.42,85.381,40.99272671]
[1773063987869,11.3030385,85.43,85.4,11.3030385]
[1773063988160,11.70425683,85.439,85.41,11.3030385]
[1773063988347,2.00760556,85.419,85.362,2.03004058]
[1773063988552,11.3030385,85.4,85.362,2.03004058]
[1773063988747,11.3030385,85.41,85.371,2.03004058]
[1773063989058,11.3030385,85.41,85.38,11.3030385]
[1773063989260,2.00760556,85.389,85.322,2.03004058]
[1773063989463,2.00760556,85.389,85.321,41.02155389]
[1773063989464,11.71385397,85.369,85.34,11.3030385]
[1773063989766,11.71385397,85.369,85.332,2.03004058]
[1773063989964,11.3030385,85.37,85.332,2.03004058]
[1773063990168,11.3030385,85.38,85.341,2.03004058]
[1773063990343,11.3030385,85.41,85.37,11.3030385]
[1773063990543,11.3030385,85.39,85.35,11.3030385]
[1773063990761,11.3030385,85.39,85.351,2.03004058]
[1773063990970,11.3030385,85.38,85.351,2.03004058]
[1773063991147,11.3030385,85.38,85.34,11.3030385]
[1773063991346,11.3030385,85.39,85.352,2.03004058]
[1773063991657,11.71038496,85.395,85.352,2.03004058]
[1773063991658,11.3030385,85.38,85.352,2.03004058]
[1773063991858,11.3030385,85.38,85.351,11.71632435]
[1773063992774,11.3030385,85.38,85.341,11.71769723]
[1773063993263,11.3030385,85.37,85.33,11.3030385]
[1773063993465,11.3030385,85.37,85.331,2.1600163]
[1773063994264,11.70973898,85.399,85.351,2.1600163]
[1773063994450,11.3030385,85.39,85.36,11.3030385]
[1773063994853,11.70973898,85.399,85.37,11.3030385]
[1773063995055,11.70912934,85.404,85.37,11.3030385]
[1773063995358,13.45023854,85.4,85.36,13.4630548]
[1773063995968,11.3030385,85.4,85.368,2.1600163]
[1773063996451,11.3030385,85.4,85.37,11.3030385]
[1773063996651,40.97640929,85.415,85.381,2.1600163]
[1773063996652,11.70754551,85.415,85.381,2.1600163]
[1773063996851,11.3030385,85.41,85.381,2.1600163]
[1773063997059,11.3030385,85.4,85.361,11.71495179]
[1773063997257,2.14720004,85.399,85.361,11.71495179]
[1773063997465,11.3030385,85.41,85.37,11.3030385]
[1773063998064,11.3030385,85.45,85.401,2.1600163]
[1773063998373,11.3030385,85.46,85.421,2.1600163]
[1773063998760,11.3030385,85.45,85.412,2.1600163]
[1773063999055,2.14720004,85.449,85.42,11.3030385]
[1773063999260,11.3030385,85.46,85.42,11.3030385]
[1773063999849,13.45023854,85.45,85.41,11.3030385]
[1773064000069,13.8502241,85.448,85.411,11.7080938]
[1773064000265,13.8502241,85.448,85.42,11.3030385]
[1773064000266,11.70302406,85.448,85.42,11.3030385]
[1773064000572,23.00441926,85.46,85.421,2.1600163]
[1773064001273,23.00441926,85.46,85.391,46.8429021]
[1773064001274,2.14720004,85.439,85.391,2.1600163]
[1773064001470,11.3030385,85.43,85.391,2.1600163]
[1773064002269,52.27226993,85.43,85.393,2.1600163]
[1773064002472,11.3030385,85.42,85.381,2.1600163]
[1773064002659,40.96923143,85.43,85.333,2.1600163]
[1773064002660,2.14720004,85.389,85.333,2.1600163]
[1773064002974,11.3030385,85.37,85.333,2.1600163]
[1773064003370,228.25706939,85.43,85.32,29.30131317]
[1773064003371,2.14720004,85.416,85.341,2.1600163]
[1773064003572,228.25706939,85.43,85.368,2.1600163]
[1773064003573,11.3030385,85.41,85.368,2.1600163]
[1773064003878,13.45023854,85.41,85.37,11.3030385]
[1773064004069,11.70836797,85.409,85.371,11.71357955]
[1773064004453,11.3030385,85.4,85.371,11.71357955]
[1773064004669,11.70836797,85.409,85.37,11.3030385]
[1773064004872,46.80513062,85.461,85.369,11.71385397]
[1773064004873,11.3030385,85.43,85.39,11.3030385]
[1773064005058,2.14720004,85.436,85.4,11.3030385]
[1773064005259,11.3030385,85.43,85.391,2.1600163]
[1773064005586,11.3030385,85.44,85.401,2.1600163]
[1773064005874,2.14720004,85.409,85.37,11.3030385]
[1773064006256,2.14720004,85.434,85.381,2.1600163]
[1773064006473,11.3030385,85.45,85.42,11.3030385]
[1773064006776,2.14720004,85.439,85.4,11.3030385]
[1773064007158,46.79000369,85.489,85.39,11.3030385]
[1773064007159,13.45023854,85.43,85.39,11.3030385]
[1773064007376,2.14720004,85.429,85.39,11.3030385]
[1773064007577,2.14720004,85.429,85.39,11.28267705]
[1773064007878,11.28267705,85.44,85.41,11.28267705]
[1773064008073,11.28267705,85.44,85.4,2.08852095]
[1773064008271,11.70425683,85.439,85.41,11.28267705]
[1773064008473,13.81858425,85.444,85.41,11.28267705]
[1773064008671,11.28267705,85.44,85.401,40.98312666]
[1773064008873,11.28267705,85.46,85.43,11.28267705]
[1773064009062,22.9827637,85.47,85.43,11.28267705]
[1773064009263,2.11493347,85.469,85.43,11.28267705]
[1773064009862,2.11493347,85.469,85.401,40.98312666]
[1773064010180,11.28267705,85.47,85.44,11.28267705]
[1773064010385,2.11493347,85.475,85.44,11.28267705]
[1773064010872,2.11493347,85.475,85.45,11.28267705]
[1773064011076,11.69919041,85.476,85.45,11.28267705]
[1773064011584,11.69919041,85.476,85.46,11.28267705]
[1773064011785,11.69754819,85.488,85.46,11.28267705]
[1773064012289,11.38267705,85.5,85.47,11.28267705]
[1773064012469,2.11493347,85.499,85.461,11.70124384]
[1773064012668,2.11493347,85.499,85.46,11.28267705]
[1773064012869,2.11493347,85.489,85.45,11.28267705]
[1773064013272,11.28267705,85.49,85.45,11.28267705]
[1773064013273,2.11493347,85.479,85.45,11.28267705]
[1773064013473,0.1,85.5,85.441,2.08852095]
[1773064013666,0.1,85.5,85.47,11.28267705]
[1773064014171,0.1,85.5,85.48,11.28267705]
[1773064014963,11.69358139,85.517,85.49,11.28267705]
[1773064015269,2.11493347,85.516,85.48,11.28267705]
[1773064015468,2.11493347,85.516,85.473,40.94860364]
[1773064015469,2.11493347,85.516,85.49,11.28267705]
[1773064015684,2.11493347,85.516,85.48,11.28267705]
[1773064015982,0.1,85.52,85.5,11.28267705]
[1773064016195,11.69330791,85.519,85.488,2.08852095]
[1773064016367,0.1,85.52,85.5,11.28267705]
[1773064017284,0.1,85.52,85.467,0.28432314]
[1773064017285,2.11493347,85.519,85.48,11.28267705]
[1773064017470,11.38267705,85.52,85.45,40.9596255]
[1773064017471,2.11493347,85.499,85.45,11.70275014]
[1773064017668,2.11493347,85.499,85.46,11.28267705]
[1773064017870,2.11493347,85.479,85.44,11.28267705]
[1773064018084,2.11493347,85.469,85.44,11.28267705]
[1773064018391,2.11493347,85.469,85.372,46.85357535]
[1773064018392,2.11493347,85.468,85.43,11.28267705]
[1773064018586,2.11493347,85.459,85.42,11.28267705]
[1773064019087,11.7002407,85.469,85.44,11.28267705]
[1773064019973,11.7002407,85.469,85.43,13.371198]
[1773064020170,2.11493347,85.489,85.46,11.28267705]
[1773064020382,11.69754819,85.488,85.45,11.28267705]
[1773064020687,40.94141867,85.488,85.45,11.28267705]
[1773064020890,2.11493347,85.503,85.47,11.28267705]
[1773064021201,2.11493347,85.541,85.491,2.08852095]
[1773064021496,2.11493347,85.541,85.441,1.17039828]
[1773064021497,2.11493347,85.529,85.444,2.08852095]
[1773064021669,2.11493347,85.519,85.49,11.28267705]
[1773064021869,11.28267705,85.51,85.47,11.28267705]
[1773064022376,2.11493347,85.508,85.48,11.28267705]
[1773064022576,46.76223387,85.54,85.471,11.69987481]
[1773064022577,11.69330791,85.519,85.49,11.28267705]
[1773064022873,40.92562059,85.521,85.49,11.28267705]
[1773064023591,11.69303445,85.521,85.5,11.28267705]
[1773064023891,11.69303445,85.521,85.487,2.16405534]
[1773064023892,11.69166734,85.531,85.51,11.28267705]
[1773064024184,11.69057389,85.539,85.51,11.28267705]
[1773064024371,11.68948063,85.547,85.52,11.28267705]
[1773064024569,0.1,85.55,85.53,11.28267705]
[1773064024773,11.6855193,85.576,85.54,11.28267705]
[1773064024992,11.6855193,85.576,85.526,2.16405534]
[1773064024993,2.21676705,85.575,85.526,2.16405534]
[1773064025180,2.21676705,85.575,85.54,11.28267705]
[1773064025495,40.89931756,85.576,85.54,11.28267705]
[1773064025496,11.6855193,85.576,85.54,11.28267705]
[1773064025692,40.89931756,85.576,85.55,11.28267705]
[1773064025989,11.28267705,85.57,85.54,11.28267705]
[1773064026192,2.21676705,85.559,85.52,11.28267705]
[1773064026388,40.9079221,85.558,85.52,11.28267705]
[1773064026589,2.21676705,85.574,85.54,11.28267705]
[1773064026788,2.21676705,85.569,85.53,11.28267705]
[1773064027091,11.28267705,85.56,85.521,11.69303445]
[1773064027292,2.21676705,85.569,85.53,11.28267705]
[1773064027673,2.21676705,85.569,85.521,40.92562059]
[1773064027988,2.21676705,85.569,85.53,11.28267705]
[1773064028296,2.21676705,85.559,85.521,11.69303445]
[1773064028478,11.68920735,85.549,85.521,11.69303445]
[1773064028983,11.68647524,85.569,85.531,2.16405534]
[1773064029190,11.28267705,85.56,85.531,2.16405534]
[1773064029584,40.90266334,85.569,85.531,2.16405534]
[1773064030095,11.28267705,85.57,85.531,2.16405534]
[1773064030267,11.28267705,85.58,85.55,11.28267705]
[1773064030472,11.28267705,85.58,85.541,2.16405534]
[1773064030667,116.81697115,85.604,85.523,2.16405534]
[1773064030668,11.28267705,85.56,85.523,2.16405534]
[1773064030873,11.68510966,85.579,85.55,11.28267705]
[1773064031078,0.14216157,85.607,85.522,11.69289773]
[1773064031079,11.68388091,85.588,85.56,11.28267705]
[1773064031576,2.21676705,85.569,85.53,11.28267705]
[1773064031876,2.21676705,85.569,85.522,11.69289773]
[1773064031877,11.28267705,85.58,85.55,11.28267705]
[1773064032272,11.28267705,85.59,85.55,11.28267705]
[1773064032495,2.21676705,85.605,85.57,11.28267705]
[1773064032703,11.68130751,85.607,85.58,11.28267705]
[1773064032990,11.28267705,85.61,85.572,2.16405534]
[1773064033288,11.28267705,85.59,85.557,2.16405534]
[1773064033483,2.21676705,85.569,85.53,11.28267705]
[1773064033687,11.28267705,85.57,85.532,2.16405534]
[1773064033985,11.28267705,85.59,85.551,2.16405534]
[1773064034189,11.28267705,85.58,85.551,2.16405534]
[1773064034392,2.21676705,85.559,85.52,11.28267705]
[1773064034896,11.68744572,85.562,85.53,11.28267705]
[1773064035200,11.68744572,85.562,85.52,22.97583793]
[1773064035201,2.21676705,85.559,85.52,22.97583793]
[1773064035375,2.21676705,85.559,85.492,11.69700088]
[1773064035579,2.21676705,85.539,85.5,11.28267705]
[1773064036097,11.28267705,85.52,85.49,11.28267705]
[1773064036277,11.28267705,85.5,85.445,2.16405534]
[1773064036481,2.21676705,85.479,85.416,2.16405534]
[1773064036689,11.70151768,85.459,85.421,11.70672317]
[1773064036887,11.69960104,85.473,85.45,11.28267705]
[1773064037199,11.28267705,85.48,85.45,11.28267705]
[1773064037382,2.21676705,85.481,85.45,11.28267705]
[1773064037580,13.91356035,85.494,85.46,11.28267705]
[1773064037782,43.15537848,85.494,85.46,11.28267705]
[1773064037982,13.91356035,85.494,85.46,11.28267705]
[1773064038293,13.91356035,85.494,85.444,2.16405534]
[1773064038478,13.91356035,85.494,85.46,11.28267705]
[1773064038681,0.28432314,85.527,85.421,134.62731645]
[1773064038682,11.69399476,85.514,85.48,11.28267705]